Cogmind - Beta 17 @@@ ROGUE MODE // 2026.08.18 @ 02:36:58 Player: Clog Result: Destroyed by U9-PEV(R) with Subdweller Machine Gun Performance ------------- Evolutions (0) 0 Regions Visited (2) 400 Robots Destroyed (38) 190 Value Destroyed (769) 769 Prototype IDs (0) 0 Alien Tech Used (0) 0 Bonus (0) 0 TOTAL SCORE: 1359 Bonus ------- None Cogmind --------- Core Integrity 0/250 Matter 191/300 Energy 82/200 System Corruption 0% Temperature Cool (0) Movement Treading (240) Ox1 Location -10/Subcaves Parts ------- > --- POWER (1) -------- Subdweller Power Source > --- PROPULSION (2) --- Light Treads > --- UTILITY (2) ------ Large Storage Unit Shield Generator > --- WEAPON (2) ------- Shotgun Rocket Launcher > --- INVENTORY (15) --- Subdweller Power Source Subdweller Power Source Light Treads Light Treads Light Treads Light Treads Structural Scanner Sensor Array Subdweller Beam Cannon Shotgun Barrage Gun Rocket Launcher Datajack Mining Laser Peak State ------------ > --- POWER ------------ Subdweller Power Source > --- PROPULSION ------- Light Treads Light Treads > --- UTILITY ---------- Large Storage Unit Shield Generator > --- WEAPON ----------- Shotgun Shotgun > --- INVENTORY -------- Subdweller Power Source Subdweller Power Source Light Treads Light Treads Light Treads Light Treads Structural Scanner Sensor Array Subdweller Beam Cannon Barrage Gun Rocket Launcher Rocket Launcher Datajack Mining Laser [Rating: 13] Favorites ----------- Power Ion Engine Engine Ion Engine Propulsion Light Treads Treads Light Treads Utility Large Storage Unit Device Seismic Detector Storage Large Storage Unit Protection Light Armor Plating Weapon Shotgun Ballistic Gun Shotgun Launcher Rocket Launcher Special Weapon Mining Laser Build | -11 -10 -10 ------- Run | Yrd Mat Sub Slots Evolved . | . . . Power . | . . . Propulsion . | . . . Utility . | . . . Weapon . | . . . Parts Attached 28 | 7 8 13 Power 6 | 1 . 5 Engine 6 | 1 . 5 Core . | . . . Reactor . | . . . Propulsion 6 | 2 2 2 Treads 6 | 2 2 2 Leg . | . . . Wheel . | . . . Hover . | . . . Flight . | . . . Utility 7 | 2 3 2 Device 2 | 1 . 1 Storage 3 | 1 2 . Processor . | . . . Hackware . | . . . Protection 2 | . 1 1 Artifact . | . . . Weapon 9 | 2 3 4 Energy Gun . | . . . Energy Cannon . | . . . Ballistic Gun 6 | 2 2 2 Ballistic Cannon . | . . . Launcher 2 | . . 2 Special Weapon 1 | . 1 . Impact Weapon . | . . . Slashing Weapon . | . . . Piercing Weapon . | . . . Special Melee Weapon . | . . . Unidentified Prototypes . | . . . Parts Lost 5 | . . 5 Power 1 | . . 1 Propulsion 2 | . . 2 Utility 2 | . . 2 Weapon . | . . . Highest Loss Streak 1 | . . 1 To Critical Strikes . | . . . Average Backups 12 | 1 11 14 Power 1 | . 1 1 Propulsion 3 | . 3 4 Utility 2 | . 2 3 Weapon 4 | . 4 5 Tool/Special . | . . . Unused Backups 14 | . 4 10 Power 1 | . . 1 Propulsion 4 | . . 4 Utility 4 | . 2 2 Weapon 4 | . 2 2 Tool/Special 1 | . . 1 Average Slot Usage (%) 97 | . 100 94 Engine 13 | . 14 13 Treads 27 | . 28 27 Device 6 | . 11 . Storage 14 | . 14 14 Protection 5 | . 2 9 Ballistic Gun 26 | . 27 24 Special Weapon 1 | . . 3 Peak Build Rating 13 | 7 11 13 Average Rating 10 | 4 9 11 On Entrance 6 | . 7 11 Avg Prop Armor Cover (%) . | . . . Naked Turns . | . . . Heaviest Build 92 | 13 92 35 Greatest Support 40 | 40 40 40 Greatest Overweight (x) 2 | 1 2 1 Average Overweight (x) . | . . . Largest Inventory Capacity 25 | 8 25 15 Average Capacity 14 | 7 15 15 Most Carried 16 | 5 16 15 Average Carried 12 | 1 11 14 Final Capacity 15 | 8 15 15 Final Carried 15 | 2 15 14 Class Distribution -------------------- 100% | Mutant Dominant Class ---------------- Mutant | -10/Materials Mutant | -10/Subcaves Resources | -11 -10 -10 ----------- Run | Yrd Mat Sub Matter Collected 1034 | 227 423 384 Remotely . | . . . Salvage Created 971 | 20 574 377 Parts 95 | 3 59 33 Haulers Intercepted 2 | . 2 . Recyclers Shooed . | . . . Parts Field Recycled . | . . . Retrieved Matter . | . . . Parts Self-Destructed 15 | . . 15 Prevented . | . . . Parts Restored . | . . . Kills | -11 -10 -10 ------- Run | Yrd Mat Sub Combat Hostiles Destroyed 31 | . 18 13 Guns 30 | . 18 12 AOE 1 | . . 1 Classes Destroyed 7 | 1 4 2 Tunneler 2 | 1 1 . Hauler 2 | . 2 . Watcher 3 | . 3 . Swarmer 17 | . 11 6 Grunt 7 | . 7 . Sentry 1 | . . 1 Subdweller 6 | . . 6 Best Kill Streak 4 | 1 4 3 Combat Bots Only 4 | . 4 3 Max Kills in Single Turn 2 | 1 2 1 Gunslinging 1 | . 1 . Exploded 1 | . . 1 Melee . | . . . Uniques/NPCs Destroyed . | . . . Combat | -11 -10 -10 -------- Run | Yrd Mat Sub Hostile Shots Fired 157 | . 75 82 Missed 41 | . 25 16 Hits 116 | . 50 66 Projectile 116 | . 50 66 Damage Taken 1435 | . 423 1012 Core 256 | . 80 176 Absorbed by Shields 34 | . . 34 Core Remaining (%) 100 | 100 . . Volleys Fired 110 | 2 52 56 Largest 2 | 2 2 2 Hottest 100 | 40 100 100 Shots Fired 201 | 4 102 95 Gun 178 | 4 100 74 Cannon . | . . . Launcher 4 | . . 4 Special 19 | . 2 17 Kinetic 178 | 4 100 74 Thermal 19 | . 2 17 Explosive 4 | . . 4 Electromagnetic . | . . . Robot Hit Streak 25 | 2 9 25 Robot Miss Streak 11 | 1 11 7 Penetration Max . | . . . Secondary Targets 4 | . 2 2 Max Gunslinging Chain 1 | . 1 1 Shots Hit Robots 114 | 2 57 55 Core Hits 64 | 2 38 24 Critical Kills . | . . . Critical Parts Destroyed . | . . . Critical Strikes . | . . . Melee Attacks . | . . . Impact . | . . . Slashing . | . . . Piercing . | . . . Sneak Attacks . | . . . Combat Hostiles . | . . . Follow-up Attacks . | . . . Damage Inflicted 1327 | 16 663 648 Guns 1197 | 16 663 518 Cannons . | . . . Explosions 130 | . . 130 Melee . | . . . Ramming . | . . . Kinetic 1197 | 16 663 518 Thermal . | . . . Explosive 130 | . . 130 Electromagnetic . | . . . Impact . | . . . Slashing . | . . . Piercing . | . . . Highest Corruption . | . . . Average Corruption . | . . . Corruption Purged . | . . . Corruption Blocked . | . . . Overload Shots . | . . . Overflow Damage . | . . . Projectiles . | . . . Explosions . | . . . Melee . | . . . Knockbacks . | . . . Impact . | . . . Kinetic . | . . . Secondary . | . . . Self-Inflicted Damage 44 | . . 44 Shots 2 | . . 2 Rammed . | . . . Targets Rammed . | . . . Kicked . | . . . Crushed . | . . . Highest Temperature 64 | . 64 . Average Temperature 15 | . 15 . Received Heat Transfer 235 | . 78 157 Siege Activations . | . . . Martial Activations . | . . . Shielding Activations . | . . . Robots Disrupted . | . . . Combat Hostiles . | . . . Robots Corrupted . | . . . Combat Hostiles . | . . . Parts Fried . | . . . Impact Corruptions . | . . . Robots Melted . | . . . Combat Hostiles . | . . . Parts Melted . | . . . Heat Transferred . | . . . Parts Sabotaged . | . . . Parts Stolen . | . . . Parts Stripped . | . . . Power Chain Reactions . | . . . Alert | -11 -10 -10 ------- Run | Yrd Mat Sub Maximum Alert Level . | . . . Low Security (%) 100 | 100 100 . Level 1 . | . . . Level 2 . | . . . Level 3 . | . . . Level 4 . | . . . Level 5 . | . . . High Security . | . . . Max Security . | . . . Peak Influence 176 | 5 176 . Initial . | . . . Average 65 | . 68 . Influence Increases 688 | 5 523 160 Destroy 0b10 Robot/C 500 | . 360 140 Destroy 0b10 Robot/NC 35 | 5 30 . Destroy Leader 100 | . 80 20 Successful Hack 23 | . 23 . Disable Machine 15 | . 15 . Lose Combat Pursuer 15 | . 15 . Influence Decreases 688 | 5 465 218 Entered New Map 29 | . . 29 Time Decay 635 | 5 465 165 Lost Part 24 | . . 24 Squads Dispatched 3 | . 3 . Investigation 2 | . 2 . Extermination . | . . . Reinforcement 1 | . 1 . Assault . | . . . Garrison . | . . . Intercept . | . . . Searches Triggered . | . . . Construction Impeded . | . . . Haulers Reinforced . | . . . Active Scanning Responses . | . . . Cargo Convoy Interrupts . | . . . Stealth | -11 -10 -10 --------- Run | Yrd Mat Sub Distress Signals 2 | . 2 . Communications Jammed . | . . . Distress Signals . | . . . Times Spotted 42 | . 27 15 Peak Tracking Total 4 | . 4 3 Tactical Retreats 1 | . 1 . Traps | -11 -10 -10 ------- Run | Yrd Mat Sub Traps Triggered . | . . . Indirectly . | . . . Trap Hack Attempts . | . . . Triggered . | . . . Disarmed . | . . . Reprogrammed . | . . . Reused . | . . . Traps Extracted . | . . . Installed . | . . . Triggered . | . . . Machines | -11 -10 -10 ---------- Run | Yrd Mat Sub Machines Disabled 1 | . 1 . Max in Single Turn 1 | . 1 . Machines Repaired . | . . . Machines Dismantled . | . . . Machines Sabotaged . | . . . Overloaded Fab Kills . | . . . Hacking | -11 -10 -10 --------- Run | Yrd Mat Sub Machines Accessed 7 | . 7 . Terminals 7 | . 7 . Fabricators . | . . . Repair Stations . | . . . Recycling Units . | . . . Scanalyzers . | . . . Garrison Access . | . . . Total Hacks 28 | . 28 . Successful 9 | . 9 . Failed 19 | . 19 . Catastrophic 1 | . 1 . Database Lockouts . | . . . Manual 30 | . 30 . Terminals 28 | . 28 . Fabricators . | . . . Repair Stations . | . . . Recycling Units . | . . . Scanalyzers . | . . . Garrison Access . | . . . Terminal Hacks 2 | . 2 . Terminal Index 1 | . 1 . Hauler Manifests 1 | . 1 . Fabricator Hacks . | . . . Repair Station Hacks . | . . . Recycling Unit Hacks . | . . . Scanalyzer . | . . . Garrison Access Hacks . | . . . Unauthorized Hacks 7 | . 7 . Terminals 7 | . 7 . Botnet 2 | . 2 . Skim 5 | . 5 . Fabricators . | . . . Repair Stations . | . . . Recycling Units . | . . . Scanalyzers . | . . . Garrison Access . | . . . Data Cores Recovered . | . . . Used . | . . . Hacking Detections 8 | . 8 . Full Trace Events 2 | . 2 . Feedback Events . | . . . Feedback Blocked . | . . . Robot Schematics Acquired . | . . . Robots Built . | . . . Authchips . | . . . Time . | . . . Total Robot Build Rating . | . . . Part Schematics Acquired . | . . . Parts Built . | . . . Authchips . | . . . Time . | . . . Total Part Build Rating . | . . . Part Studies Acquired . | . . . Parts Repaired . | . . . Time . | . . . Parts Recycled . | . . . Recycled Matter . | . . . Retrieved Matter . | . . . Retrieved Components . | . . . Parts Scanalyzed . | . . . Part Schematics Acquired . | . . . Parts Damaged . | . . . Bothacking | -11 -10 -10 ------------ Run | Yrd Mat Sub Used RIF Installer . | . . . Robots Hacked . | . . . Non-combat . | . . . Combat . | . . . Robot Hacks Applied . | . . . Relay Couplers Released . | . . . Fabnet Peak Effective % . | . . . Robots Rewired . | . . . Allies Hacked . | . . . Hacks Repelled . | . . . Allies | -11 -10 -10 -------- Run | Yrd Mat Sub Total Allies . | . . . Largest Group . | . . . Highest-Rated Group . | . . . Highest-Rated Ally . | . . . Total Orders . | . . . Ally Attacks . | . . . Total Damage . | . . . Kills . | . . . Allies Corrupted . | . . . Allies Melted . | . . . Intel | -11 -10 -10 ------- Run | Yrd Mat Sub Active Infowar (turns) 1232 | 5 1227 . Seismic 1232 | 5 1227 . Robot Analysis Total . | . . . Derelict Logs Recovered 1 | . . 1 Drone Launches . | . . . Drone Recoveries . | . . . Exploration | -11 -10 -10 ------------- Run | Yrd Mat Sub Turns Passed 2798 | 72 1501 1225 Spaces Moved 1390 | 44 725 621 Core 19 | 19 . . Treads 1371 | 25 725 621 Legs . | . . . Wheels . | . . . Hover . | . . . Flight . | . . . Fastest Speed 50 | 50 160 160 Average Speed 169 | 118 179 160 Slowest Speed 320 | 160 320 240 Overloaded Moves . | . . . Propulsion Burnouts . | . . . Robots Hopped . | . . . Potential Cave-ins . | . . . Cave-ins Triggered . | . . . Exploration Rate (%) 46 | 4 89 47 Regions Visited 2 Branch Regions 1 Pre-discovered Areas . | . . . Known Exits Taken . | . . . Unknown Exits Taken 2 | 1 1 . Scrap Searched 2 | . . 2 Spaces Dug . | . . . Terrain Destroyed 26 | . . 26 Melee . | . . . Projectile . | . . . AOE 26 | . . 26 Terrain Rammed . | . . . Walls Destroyed . | . . . Machines Disabled . | . . . Actions | -11 -10 -10 --------- Run | Yrd Mat Sub Total 1608 | 60 830 718 Wait 14 | . 4 10 Move 1388 | 43 724 621 Hop . | . . . Pick Up 39 | 8 24 7 Fast Attach 3 | 1 1 1 Attach 11 | 6 . 5 Detach 1 | . . 1 Swap 21 | . 10 11 Drop 21 | . 15 6 Fire 110 | 2 52 56 Melee . | . . . Ram . | . . . Kick . | . . . Crush . | . . . Escape Stasis . | . . . Rewire . | . . . Trap . | . . . Miscellaneous . | . . . Route ------- -11/Scrapyard -10/Materials (discovered 5 exits: [*Mat x3] / [*Min] / [*Sub]) -10/Subcaves History --------- Turn | Location | Event 5 | -11/Scrapyard | Discovered new exit (range 15) 73 | -11/Scrapyard | Entered Materials 151 | -10/Materials | Discovered new exit (range 7) 191 | -10/Materials | Discovered new exit (range 15) 322 | -10/Materials | Build established: Mutant 360 | -10/Materials | Discovered new exit (range 16) 773 | -10/Materials | Derelicts attacked the area 885 | -10/Materials | Discovered new exit (range 9) 1338 | -10/Materials | Discovered new exit (range 16) 1574 | -10/Materials | Entered Subcaves 1581 | -10/Subcaves | Ambushed by Subdwellers from Twisted Machinery 1610 | -10/Subcaves | Core integrity fell below 50% 2124 | -10/Subcaves | Learned Materials terminal intel 2187 | -10/Subcaves | Core integrity fell below 20% 2436 | -10/Subcaves | A swath of the cavern ceiling suddenly collapsed 2546 | -10/Subcaves | Shifting Twisted Machinery released Barrage Gun 2725 | -10/Subcaves | Shifting Twisted Machinery released Battle Cannon 2739 | -10/Subcaves | Shifting Twisted Machinery released Sub. Monowheel 2784 | -10/Subcaves | A Subdweller sparked back to life 2784 | -10/Subcaves | A Subdweller sparked back to life 2784 | -10/Subcaves | A Subdweller sparked back to life 2799 | -10/Subcaves | Destroyed by U9-PEV(R) with Subdweller Machine Gun Last Messages --------------- 02505_ Acquired 6 matter. 02513_ Acquired 11 matter. Barrage Gun falls loose from the Twisted Machinery. 02567_ Dropped Shotgun. 02567_ Acquired Barrage Gun. Battle Cannon falls loose from the Twisted Machinery. Sub. Monowheel falls loose from the Twisted Machinery. 02784_ U9-PEV(R) creaks and sparks as it begins to move. 02784_ LK-QT1(R) creaks and sparks as it begins to move. 02784_ 88-E8D(R) creaks and sparks as it begins to move. 02795_ The unstable cave ceiling collapses. 02795_ LK-QT1(R) destroyed. 02797_ Lgt. Treads destroyed. 02799_ The unstable cave ceiling collapses. Map ----- +----------------------------------------------------+ | ?????????????????????????????????????????????????? | | ?????????????????????????????????????????????????? | | ?????????????????????????????????????????????????? | | ?????????????????????????????????????????????????? | | ?????????????????????????????????????????????????? | | ?????????????????????????????????????????????????? | | ???????????????????????##?###????????????????????? | | ???????????????????????# ## ##???????????????????? | | ???????????????????????# ##??????????????????? | | ???????????????????????# ##????????????#####? | | ???????????????????????# ##########??## " # | | ????????????????????????# # ##"""##?# "" | | ????????????????????????# "=" #?# "" | | ???????????????????????## "" """]#?####### | | ???????????????###???### ## ##??###### | | ??????????????? "?# ##### ##? "##""" | | ??????????????? " "" ##??## ##"" """ | | ????????????? #?##""" "" ##"" | | ???????????? "" " # #"""" "" ##### | | ??????????????#?" # """"" #" ##???# | | ????????????????## """"" "####????# | | ?????????????????# """"#"# ""#???????# | | ??????????????# # R "# #### "##???????# | | ??????????????# ## ! ###??## "########## | | ??????????????## ?##%= ##???# " # # # | | ???????????????## ?#@* #???## | | ????????????????## ? #????# ## ## | | ?????????????????## #????########## | | ??????????????????## #### # ##?????????????## | | ???????????????????#????#####?##???????????????### | | ?????????????????????????????????????????????????? | | ?????????????????????????????????????????????????? | | ?????????????????????????????????????????????????? | | ?????????????????????????????????????????????????? | | ?????????????????????????????????????????????????? | | ?????????????????????????????????????????????????? | | ?????????????????????????????????????????????????? | | ?????????????????????????????????????????????????? | | ?????????????????????????????????????????????????? | | ?????????????????????????????????????????????????? | | ?????????????????????????????????????????????????? | | ?????????????????????????????????????????????????? | | ?????????????????????????????????????????????????? | | ?????????????????????????????????????????????????? | | ?????????????????????????????????????????????????? | | | | | | | | | | | +----------------------------------------------------+ Best States ------------- Heat Dissipation 25 Energy Generation 15 Energy Capacity 250 Matter Stores 300 Matter Capacity 300 Sight Range 16 Terrain Scan Density 10 Armor Coverage 150 Evasion (%) 50 Recoil Reduction 2 Item Schematics ----------------- None Robot Schematics ------------------ None Fabricated ------------ Nothing Repaired ---------- Nothing Studied --------- None Alien Tech Used ----------------- None Achievements -------------- None Challenges ------------ None Game ------ Seed PiercingMissileBiocell Manual? 0 Play Time 00:20:17 Cumulative 27.2 hours Start 2026.08.18 @ 02:17:28 End 2026.08.18 @ 02:36:58 Sessions 1 Manual Loads 0 Difficulty Rogue Special Mode None Game No. 31 Rogue 28 Adventurer 3 Explorer 0 Win Type - Total 1 Types 1/0/0/0/0/0/0/0/0/0 Lore% 28 Gallery% 23 Achievement% 25 Wizard Run 0 Options --------- Layout 1 ASCII 0 Keyboard 0 Movement Mouse Keybinds 0 Fullscreen 1 Font 32/SmallcapsGlow Map View 50x35 Zoom Use 0% Tactical HUD 1 Map Filters NONE Filters NONE Steam 1 RUN: 85c1cc61-fd72-497a-a44c-0d01b0bc03ce